bitfinex/quotes_BTCUSD_20241018
["timestamp","ask_amount","ask_price","bid_price","bid_amount"]
[1729262266884,0.14895915,68401.0,68393.0,0.1]
[1729262267102,0.0001,68403.0,68391.0,0.06446936]
[1729262267319,0.0001,68403.0,68395.0,0.06446936]
[1729262267534,0.0001,68403.0,68394.0,0.06446936]
[1729262267754,0.0001,68403.0,68397.0,0.06438788]
[1729262267755,0.00468,68402.0,68397.0,0.06438788]
[1729262268453,0.00468,68402.0,68398.0,0.06438788]
[1729262268679,0.21904685,68400.0,68397.0,0.1]
[1729262268897,0.00468,68402.0,68397.0,0.1]
[1729262268898,0.14895915,68399.0,68397.0,0.1]
[1729262269128,0.00465962,68399.0,68397.0,0.1]
[1729262269834,0.00465962,68399.0,68398.0,0.00219218]
[1729262270288,0.00465962,68399.0,68398.0,0.06658006]
[1729262270507,0.00465962,68399.0,68398.0,0.00219218]
[1729262270765,0.0001,68403.0,68398.0,0.00219218]
[1729262270999,0.00467057,68399.0,68398.0,0.04517147]
[1729262271265,0.0001,68403.0,68398.0,0.04517147]
[1729262271266,0.0001,68402.0,68398.0,0.04517147]
[1729262271923,0.00468564,68401.0,68398.0,0.04517147]
[1729262273058,0.0001,68402.0,68398.0,0.00219218]
[1729262273299,0.0001,68402.0,68398.0,0.04517147]
[1729262273542,0.00468957,68401.0,68398.0,0.04517147]
[1729262273785,0.00468957,68401.0,68399.0,0.04297929]
[1729262274659,0.00468957,68401.0,68400.0,0.14297929]
[1729262275574,0.00468957,68401.0,68400.0,0.16438788]
[1729262275816,0.00468957,68401.0,68399.0,0.0858505]
[1729262275817,0.15364872,68401.0,68399.0,0.1]
[1729262276029,0.14895915,68400.0,68398.0,0.00219218]
[1729262276246,0.15315064,68400.0,68398.0,0.00219218]
[1729262277588,0.00336349,68400.0,68399.0,0.00628306]
[1729262277811,0.001536,68403.0,68399.0,0.34083916]
[1729262278042,0.001536,68403.0,68400.0,0.23217539]
[1729262278264,0.001536,68403.0,68401.0,0.14149982]
[1729262278569,0.001536,68403.0,68402.0,0.04410111]
[1729262279039,0.001536,68403.0,68402.0,0.04149982]
[1729262279287,0.001536,68403.0,68402.0,0.33213349]
[1729262279498,0.001536,68403.0,68402.0,0.14149982]
[1729262281138,0.001536,68403.0,68402.0,0.29777755]
[1729262281391,0.03,68420.0,68402.0,0.29777755]
[1729262281392,0.03,68420.0,68407.0,0.02492]
[1729262281616,0.523658,68408.0,68407.0,0.50527897]
[1729262281833,0.02967385,68408.0,68407.0,0.34996755]
[1729262282281,0.02967385,68408.0,68407.0,3.10158555]
[1729262282505,0.02967385,68408.0,68407.0,2.68830755]
[1729262282951,0.21904685,68415.0,68414.0,0.00192]
[1729262283201,0.03,68420.0,68414.0,0.00192]
[1729262283202,0.03,68420.0,68419.0,0.00192]
[1729262283426,0.03,68420.0,68419.0,0.25087915]
[1729262283655,0.03,68420.0,68419.0,0.27387915]
[1729262283862,0.03,68420.0,68419.0,0.44932273]
[1729262284069,0.03,68420.0,68419.0,2.04621873]
[1729262284291,0.03,68420.0,68419.0,2.10170916]
[1729262284516,0.03,68420.0,68419.0,1.89278673]
[1729262284748,0.03,68420.0,68419.0,1.89497733]
[1729262284984,0.03,68420.0,68419.0,1.60102633]
[1729262285219,0.03,68420.0,68419.0,0.25114975]
[1729262285673,0.03,68420.0,68419.0,0.6519217]
[1729262285902,0.03,68420.0,68419.0,1.3982747]
[1729262286171,0.03,68420.0,68419.0,1.42638375]
[1729262286397,0.03,68420.0,68419.0,1.53345477]
[1729262286638,0.03,68420.0,68419.0,1.42638375]
[1729262286860,0.03,68420.0,68419.0,1.48794177]
[1729262287076,0.03,68420.0,68419.0,0.25306976]
[1729262287289,0.03,68420.0,68419.0,0.25114976]
[1729262287503,0.03,68420.0,68419.0,0.25306976]
[1729262287949,0.03,68420.0,68419.0,0.25114976]
[1729262288175,0.2261,68420.0,68419.0,0.00219061]
[1729262288399,0.37505915,68420.0,68419.0,0.00219061]
[1729262289331,0.39805915,68420.0,68419.0,0.00219061]
[1729262289780,0.39971515,68420.0,68419.0,0.00219061]
[1729262290000,0.39971515,68420.0,68407.0,0.000828]
[1729262290001,0.023,68419.0,68407.0,0.000828]
[1729262290189,0.14895915,68418.0,68407.0,0.000828]
[1729262290440,0.306656,68420.0,68410.0,0.21904685]
[1729262290653,0.306656,68420.0,68407.0,0.000828]
[1729262290654,0.21904685,68419.0,68407.0,0.000828]
[1729262291109,0.21904685,68419.0,68410.0,0.04288922]
[1729262291348,0.21904685,68419.0,68409.0,0.04288922]
[1729262291592,0.14895915,68418.0,68407.0,0.000828]
[1729262292496,0.306656,68420.0,68408.0,0.04288922]
[1729262292705,0.227756,68420.0,68411.0,0.04288922]
[1729262292930,0.21904685,68419.0,68415.0,0.04285508]
[1729262293366,0.031656,68420.0,68415.0,0.04285508]
[1729262293577,0.031656,68420.0,68416.0,0.04285508]
[1729262294108,0.031656,68420.0,68417.0,0.04285508]
[1729262294338,0.031656,68420.0,68416.0,0.1]
[1729262294568,0.031656,68420.0,68417.0,0.04285508]
[1729262294787,0.031656,68420.0,68418.0,0.04285508]
[1729262295017,0.031656,68420.0,68419.0,0.04285508]
[1729262295246,0.031656,68420.0,68419.0,0.04284463]
[1729262295724,0.031656,68420.0,68418.0,0.1]
[1729262296194,0.03136194,68420.0,68418.0,0.1]
[1729262296675,0.03136194,68420.0,68414.0,0.04284463]
[1729262297629,0.03136194,68420.0,68415.0,0.04284463]
[1729262298498,0.03136194,68420.0,68419.0,0.00219152]
[1729262299378,0.03136194,68420.0,68419.0,0.08788079]
[1729262299618,0.03136194,68420.0,68419.0,0.1436075]
[1729262299831,0.18032109,68420.0,68419.0,0.1665469]
[1729262300051,0.18032109,68420.0,68419.0,0.10219152]
[1729262300280,0.18032109,68420.0,68419.0,0.00219152]
[1729262301200,0.39252109,68420.0,68419.0,0.00219152]
[1729262301685,0.0793,68408.0,68407.0,0.000828]
[1729262301900,0.0793,68408.0,68398.0,0.3048495]
[1729262301901,0.025,68405.0,68398.0,0.21904685]
[1729262302129,0.023,68401.0,68398.0,0.21904685]
[1729262302363,0.023,68399.0,68384.0,0.06435538]
[1729262302574,0.14895915,68398.0,68383.0,0.28340223]
[1729262302801,0.182,68397.0,68383.0,0.28340223]
[1729262303028,0.14895915,68396.0,68384.0,0.16435538]
[1729262303249,0.14895915,68396.0,68384.0,0.1]
[1729262303498,0.14895915,68396.0,68384.0,0.16435538]
[1729262303733,0.14895915,68396.0,68383.0,0.21904685]
[1729262303734,0.21904685,68392.0,68383.0,0.06435538]
[1729262304039,0.17195915,68392.0,68382.0,0.06435538]
[1729262304247,0.023,68391.0,68373.0,0.06689679]
[1729262304475,0.023,68388.0,68378.0,0.21904685]
[1729262304686,0.023,68386.0,68373.0,0.00254141]
[1729262304902,0.14895915,68385.0,68370.0,0.06435538]
[1729262305135,0.15540806,68385.0,68370.0,0.06435538]
[1729262305367,0.21904685,68384.0,68370.0,0.06435538]
[1729262305626,0.21904685,68384.0,68369.0,0.06435538]
[1729262305627,0.14895915,68383.0,68369.0,0.06435538]
[1729262305847,0.15539029,68383.0,68369.0,0.06435538]
[1729262306499,0.15539029,68383.0,68368.0,0.06435538]
[1729262306500,0.14895915,68383.0,68368.0,0.06435538]
[1729262306718,0.14895915,68383.0,68366.0,0.06435538]
[1729262306719,0.0991,68376.0,68366.0,0.06435538]
[1729262306936,0.14895915,68375.0,68361.0,0.06435538]
[1729262307148,0.14895915,68375.0,68360.0,0.21904685]
[1729262307363,0.14895915,68375.0,68358.0,0.06435538]
[1729262307600,0.14895915,68372.0,68359.0,0.06435538]
[1729262307842,0.14895915,68372.0,68360.0,0.06435538]
[1729262308075,0.0761,68376.0,68363.0,0.06435538]
[1729262308329,0.1971,68382.0,68364.0,0.16435538]
[1729262308547,0.21904685,68377.0,68368.0,0.06435538]
[1729262308776,0.21904685,68377.0,68369.0,0.16435538]
[1729262309000,0.21904685,68377.0,68369.0,0.16425538]
[1729262309299,0.1971,68382.0,68369.0,0.16425538]
[1729262309529,0.083,68391.0,68369.0,0.16425538]
[1729262309530,0.083,68391.0,68369.0,0.1]
[1729262309753,0.083,68391.0,68370.0,0.13696891]
[1729262309979,0.083,68391.0,68371.0,0.18580265]
[1729262310120,0.083,68391.0,68375.0,0.18580265]
[1729262310382,0.083,68391.0,68373.0,0.1]
[1729262310383,0.1997,68396.0,68380.0,0.00219247]
[1729262310558,0.21904685,68383.0,68380.0,0.08806174]
[1729262310763,0.14895915,68394.0,68380.0,0.00219247]
[1729262310964,0.14895915,68394.0,68381.0,0.08586927]
[1729262310965,0.21904685,68388.0,68381.0,0.08586927]
[1729262311174,0.21904685,68388.0,68380.0,0.08806174]
[1729262311381,0.14895915,68394.0,68380.0,0.00219247]
[1729262311813,0.14895915,68394.0,68383.0,0.0429385]
[1729262312963,0.1997,68396.0,68382.0,0.0429385]
[1729262312964,0.21904685,68386.0,68382.0,0.0429385]
[1729262313210,0.14895915,68385.0,68380.0,0.00219247]
[1729262313657,0.023,68382.0,68380.0,0.00219247]
[1729262313882,0.25045915,68381.0,68380.0,0.00219247]
[1729262314110,0.44805915,68381.0,68380.0,0.00219247]
[1729262316453,0.42505915,68381.0,68380.0,0.00219247]
[1729262317219,0.42515915,68381.0,68380.0,0.00219247]
[1729262317457,0.42515915,68381.0,68369.0,0.000828]
[1729262317932,0.14895915,68379.0,68369.0,0.000828]
[1729262318605,0.21904685,68378.0,68369.0,0.000828]
[1729262318833,0.14895915,68377.0,68369.0,0.000828]
[1729262321265,0.14905915,68377.0,68369.0,0.000828]
[1729262323618,0.0001,68377.0,68369.0,0.000828]
[1729262323851,0.40084685,68396.0,68376.0,0.10733659]
[1729262324091,0.21904685,68389.0,68383.0,0.06421363]
[1729262324325,0.21904685,68389.0,68388.0,0.1]
[1729262324825,0.21904685,68396.0,68388.0,0.18558968]
[1729262325039,0.21904685,68396.0,68392.0,0.04279511]
[1729262325494,0.1818,68411.0,68392.0,0.04279511]
[1729262325719,0.001756,68394.0,68393.0,0.04279511]
[1729262326155,0.001756,68394.0,68392.0,0.04279511]
[1729262326379,0.001756,68394.0,68393.0,0.04279511]
[1729262326608,0.001756,68394.0,68393.0,0.06754041]
[1729262326829,0.001756,68394.0,68393.0,0.10334775]
[1729262327048,0.001756,68394.0,68393.0,1.34909717]
[1729262327291,0.001756,68394.0,68393.0,1.39043774]
[1729262327512,0.00027368,68394.0,68393.0,1.39043774]
[1729262327738,0.00027368,68394.0,68393.0,1.51687168]
[1729262327958,0.00037368,68394.0,68393.0,1.51687168]
[1729262328192,0.00037368,68394.0,68393.0,1.38851774]
[1729262328409,0.00037368,68394.0,68393.0,1.51687168]
[1729262328670,0.00037368,68394.0,68393.0,1.51693396]
[1729262328881,0.00037368,68394.0,68393.0,1.39043774]
[1729262329332,0.00037368,68394.0,68393.0,1.38851774]
[1729262330068,0.00037368,68394.0,68393.0,1.39043774]
[1729262331239,0.00037368,68394.0,68393.0,1.23955859]
[1729262331485,0.00037368,68394.0,68393.0,0.04353249]
[1729262331947,0.00037368,68394.0,68393.0,0.14353249]
[1729262332169,0.00037368,68394.0,68393.0,0.14645078]
[1729262332407,0.00037368,68394.0,68393.0,0.27211892]
[1729262333087,0.00037368,68394.0,68393.0,0.14353249]
[1729262333311,0.00037368,68394.0,68393.0,0.27410058]
[1729262333532,0.00037368,68394.0,68393.0,1.23955569]
[1729262333991,0.42683283,68394.0,68393.0,0.00219192]
[1729262334219,0.44983283,68394.0,68393.0,0.00219192]
[1729262334444,0.023,68393.0,68385.0,0.08581581]
[1729262334667,0.14895915,68386.0,68375.0,0.08581581]
[1729262334890,0.023,68385.0,68373.0,0.08581581]
[1729262335150,0.27787368,68394.0,68364.0,0.21904685]
[1729262335151,0.023,68383.0,68365.0,0.08581581]
[1729262335393,0.023,68383.0,68364.0,0.21904685]
[1729262335394,0.023,68381.0,68364.0,0.21904685]
[1729262335614,0.14895915,68380.0,68361.0,0.08581581]
[1729262335848,0.14895915,68380.0,68363.0,0.08581581]
[1729262336115,0.14895915,68380.0,68361.0,0.1072581]
[1729262336116,0.14895915,68380.0,68364.0,0.08581581]
[1729262336398,0.21904685,68390.0,68367.0,0.08581581]
[1729262336628,0.21904685,68390.0,68368.0,0.08581581]
[1729262336629,0.21904685,68379.0,68368.0,0.08581581]
[1729262336861,0.14895915,68389.0,68369.0,0.08664381]
[1729262337098,0.21904685,68383.0,68373.0,0.08581581]
[1729262337332,0.21904685,68383.0,68374.0,0.1072581]
[1729262337569,0.21904685,68383.0,68376.0,0.08587461]
[1729262337796,0.21904685,68383.0,68377.0,0.08587461]
[1729262338030,0.21904685,68383.0,68376.0,0.08587461]
[1729262338262,0.21904685,68383.0,68375.0,0.1]
[1729262338263,0.21904685,68383.0,68375.0,0.18587461]
[1729262338481,0.21904685,68383.0,68377.0,0.1]
[1729262338708,0.14895915,68382.0,68373.0,0.08587461]
[1729262338940,0.14895915,68382.0,68369.0,0.000828]
[1729262339404,0.023,68381.0,68369.0,0.000828]
[1729262339648,0.023,68379.0,68369.0,0.000828]
[1729262339878,0.14895915,68378.0,68369.0,0.000828]
[1729262340549,0.21904685,68376.0,68369.0,0.000828]
[1729262340776,0.1971,68374.0,68369.0,0.000828]
[1729262340999,0.22675915,68373.0,68369.0,0.000828]
[1729262341484,0.17195915,68372.0,68358.0,0.08599527]
[1729262341692,0.17195915,68372.0,68353.0,0.08599527]
[1729262341912,0.17195915,68372.0,68352.0,0.08599527]
[1729262342144,0.21904685,68369.0,68352.0,0.08599527]
[1729262342397,0.14895915,68368.0,68352.0,0.08599527]
[1729262342644,0.14895915,68368.0,68351.0,0.08599527]
[1729262343157,0.14895915,68368.0,68357.0,0.00219311]
[1729262343418,0.21904685,68367.0,68361.0,0.06451213]
[1729262343656,0.21904685,68367.0,68365.0,0.06451213]
[1729262343897,0.0779,68373.0,68365.0,0.06451213]
[1729262344154,0.14895915,68372.0,68365.0,0.06451213]
[1729262344378,0.0779,68373.0,68371.0,0.08599527]
[1729262344379,0.0001,68373.0,68371.0,0.08599527]
[1729262344630,0.0001,68373.0,68371.0,0.0029249]
[1729262344845,0.0001,68373.0,68372.0,0.27045732]
[1729262345068,1.556e-05,68373.0,68372.0,0.14338442]
[1729262345827,1.556e-05,68373.0,68372.0,0.04146442]
[1729262346088,1.556e-05,68373.0,68372.0,1.38676647]
[1729262346337,0.0828,68396.0,68372.0,1.38676647]
[1729262346338,0.0762,68409.0,68380.0,0.00192]
[1729262346574,0.21904685,68412.0,68381.0,4.45478757]
[1729262346575,0.21904685,68382.0,68381.0,4.45478757]
[1729262346820,0.21904685,68412.0,68382.0,0.1]
[1729262347068,0.21904685,68412.0,68388.0,0.00192]
[1729262347284,0.21904685,68412.0,68389.0,0.29042357]
[1729262347523,0.0001,68390.0,68389.0,0.29042357]
[1729262347746,0.0001,68390.0,68389.0,0.29234357]
[1729262348009,0.0001,68390.0,68389.0,0.66523457]
[1729262348452,0.0001,68390.0,68389.0,0.29042357]
[1729262348906,0.0001,68390.0,68389.0,0.14146442]
[1729262349197,0.0001,68390.0,68389.0,0.04146442]
[1729262349436,0.0001,68390.0,68389.0,0.14146442]
[1729262349883,0.0001,68390.0,68389.0,0.22909348]
[1729262350123,0.0001,68390.0,68389.0,0.1]
[1729262350359,0.0001,68390.0,68389.0,0.34915875]
[1729262350360,0.0002,68390.0,68389.0,0.34915875]
[1729262351311,0.0002,68390.0,68389.0,0.24915875]
[1729262352716,0.0002,68390.0,68389.0,0.34915875]
[1729262353489,0.0002,68390.0,68389.0,0.51975001]
[1729262353731,0.0002,68390.0,68389.0,0.39065653]
[1729262353958,0.0002,68390.0,68389.0,1.63571378]
[1729262354176,0.0002,68390.0,68389.0,0.39065653]
[1729262354901,0.14915915,68390.0,68389.0,0.24915875]
[1729262355167,0.36895915,68390.0,68388.0,0.0430818]
[1729262355388,0.17195915,68389.0,68381.0,0.0430818]
[1729262355611,0.14895915,68384.0,68381.0,0.0430818]
[1729262356323,0.17195915,68384.0,68383.0,0.24915875]
[1729262356796,0.14895915,68384.0,68383.0,0.24915875]
[1729262357688,0.14905915,68384.0,68383.0,0.24915875]
[1729262358158,0.17205915,68384.0,68383.0,0.24915875]
[1729262358375,0.14905915,68384.0,68383.0,0.24915875]
[1729262359249,0.14905915,68384.0,68383.0,0.34915875]
[1729262359698,0.0001,68384.0,68383.0,0.34915875]
[1729262360150,0.02124658,68389.0,68388.0,0.24915875]
[1729262360360,0.0002,68390.0,68389.0,0.1]
[1729262360599,0.08337368,68394.0,68389.0,0.1]
[1729262360806,0.14895915,68393.0,68389.0,0.1]
[1729262361666,0.196,68402.0,68389.0,0.1]
[1729262361909,0.21904685,68397.0,68389.0,0.1]
[1729262362567,0.14895915,68396.0,68389.0,0.1]
[1729262363284,0.14895915,68396.0,68392.0,0.04305675]
[1729262363485,0.14895915,68396.0,68395.0,0.24915875]
[1729262363708,0.17195915,68396.0,68395.0,0.00219229]
[1729262363923,0.1052,68395.0,68390.0,0.24915875]
[1729262364132,0.14895915,68391.0,68390.0,0.24915875]
[1729262364341,0.17195915,68391.0,68390.0,0.24915875]
[1729262365633,0.17195915,68391.0,68390.0,0.4983175]
[1729262365883,0.14895915,68391.0,68390.0,0.4983175]
[1729262366327,0.19525454,68394.0,68391.0,0.1]
[1729262366554,0.14895915,68393.0,68391.0,0.1]
[1729262366756,0.0001,68396.0,68391.0,0.1]
[1729262366967,0.14905915,68396.0,68395.0,0.34915875]
[1729262367235,0.0001,68396.0,68395.0,0.34915875]
[1729262367861,0.0001,68396.0,68395.0,0.49013536]
[1729262368298,0.0001,68396.0,68395.0,0.55471626]
[1729262368590,0.0001,68396.0,68395.0,0.49013536]
[1729262368796,0.14905915,68396.0,68395.0,0.55472276]
[1729262369044,0.14905915,68396.0,68395.0,0.49013536]
[1729262369932,0.14915915,68396.0,68395.0,0.5331986]
[1729262370181,0.14915915,68396.0,68395.0,0.49013536]
[1729262371083,0.14915915,68396.0,68390.0,0.04306324]
[1729262371084,0.17215915,68396.0,68390.0,0.04306324]
[1729262371297,0.17215915,68396.0,68389.0,0.39013536]
[1729262371298,0.023,68390.0,68389.0,0.39013536]
[1729262371513,0.17195915,68390.0,68389.0,0.39013536]
[1729262372152,0.35985915,68390.0,68389.0,0.39013536]
[1729262373302,0.35985915,68390.0,68388.0,0.00219263]
[1729262373554,0.23195915,68389.0,68388.0,0.00219263]
[1729262373760,0.25495915,68389.0,68388.0,0.00219263]
[1729262376113,0.25661515,68389.0,68388.0,0.00219263]
[1729262378908,0.25861515,68389.0,68388.0,0.00219263]
[1729262379136,0.023,68388.0,68381.0,0.000828]
[1729262379359,0.17195915,68382.0,68381.0,0.000828]
[1729262381409,0.17395915,68382.0,68381.0,0.000828]
[1729262381640,0.17195915,68382.0,68381.0,0.000828]
[1729262383315,0.17195915,68382.0,68381.0,0.39096336]
[1729262383555,0.14895915,68382.0,68381.0,0.39096336]
[1729262383803,0.14895915,68382.0,68381.0,0.000828]
[1729262384736,0.17195915,68382.0,68381.0,0.000828]
[1729262385860,0.17205915,68382.0,68381.0,0.000828]
[1729262387022,0.02310634,68381.0,68373.0,0.39013536]
[1729262387243,0.17195915,68375.0,68372.0,0.0021]
[1729262387466,0.17195915,68375.0,68374.0,0.39232873]
[1729262387905,0.17195915,68375.0,68374.0,0.00219337]
[1729262390297,0.023,68357.0,68356.0,0.24937847]
[1729262390557,0.17195915,68357.0,68356.0,0.24937847]
[1729262390784,0.14895915,68357.0,68356.0,0.24937847]
[1729262392597,0.14895915,68357.0,68353.0,0.06468423]
[1729262392812,0.14895915,68356.0,68352.0,0.1]
[1729262393044,0.14895915,68356.0,68355.0,0.24937847]
[1729262393529,0.0001,68357.0,68356.0,0.1]
[1729262394009,0.0001,68357.0,68356.0,0.14161498]
[1729262395140,0.0001,68357.0,68356.0,0.39099345]
[1729262395365,0.21904685,68367.0,68364.0,0.49875694]
[1729262395592,0.14895915,68366.0,68365.0,0.16468755]
[1729262396157,0.14895915,68366.0,68365.0,0.1]
[1729262396610,0.0001,68375.0,68365.0,0.18625007]
[1729262396854,0.14895915,68374.0,68370.0,0.06469088]
[1729262397089,0.14895915,68374.0,68368.0,0.0862545]
[1729262397090,0.0001,68375.0,68371.0,0.04160327]
[1729262397307,0.0001,68375.0,68374.0,0.1]
[1729262397551,0.0001,68375.0,68374.0,0.14160327]
[1729262398510,0.0001,68375.0,68374.0,0.1]
[1729262399213,0.0001,68375.0,68374.0,0.14159641]
[1729262400149,0.14905915,68375.0,68374.0,0.14159641]
[1729262400384,0.14905915,68375.0,68374.0,0.1]
[1729262401105,0.001756,68382.0,68374.0,0.1]
[1729262401340,0.001756,68382.0,68380.0,0.24937847]
[1729262401559,0.21904685,68390.0,68383.0,0.00192]
[1729262401812,0.21904685,68390.0,68389.0,0.78978752]
[1729262402064,0.21904685,68390.0,68389.0,0.64034753]
[1729262402285,0.21904685,68404.0,68390.0,0.1]
[1729262402498,0.21904685,68404.0,68394.0,0.37876354]
[1729262402735,0.21904685,68404.0,68394.0,0.39096906]
[1729262403889,0.21904685,68404.0,68394.0,0.52035413]
[1729262404104,0.21904685,68404.0,68394.0,0.39096906]
[1729262405012,0.21904685,68405.0,68403.0,0.24937847]
[1729262405239,0.21904685,68405.0,68402.0,0.06465791]
[1729262405463,0.078656,68420.0,68402.0,0.06465791]
[1729262405464,0.076656,68420.0,68402.0,0.06465791]
[1729262405736,0.076656,68420.0,68395.0,0.1]
[1729262405737,0.076656,68420.0,68408.0,0.00219182]
[1729262406194,0.023,68418.0,68408.0,0.00219182]
[1729262406415,0.023,68416.0,68408.0,0.00219182]
[1729262406635,0.14895915,68415.0,68408.0,0.00219182]
[1729262409185,0.023,68416.0,68408.0,0.00219182]
[1729262409186,0.023,68411.0,68408.0,0.00219182]
[1729262409432,0.14895915,68409.0,68408.0,0.00219182]
[1729262409682,0.59123815,68409.0,68408.0,0.00219182]
[1729262410161,0.023,68408.0,68395.0,0.24937847]
[1729262410404,0.17195915,68396.0,68395.0,0.24937847]
[1729262411074,0.17195915,68396.0,68395.0,0.23052117]
[1729262411769,0.14895915,68396.0,68395.0,0.23052117]
[1729262413461,0.14895915,68408.0,68398.0,0.16456783]
[1729262413685,0.14895915,68408.0,68398.0,0.06456783]
[1729262414826,0.14895915,68408.0,68397.0,0.06454291]
[1729262415052,0.14895915,68408.0,68407.0,0.39006356]
[1729262415285,0.001656,68409.0,68407.0,0.39006356]
[1729262415527,0.0001,68408.0,68407.0,0.39006356]
[1729262417952,0.14905915,68408.0,68407.0,0.39006356]
[1729262418665,0.14905915,68408.0,68407.0,0.00219203]
[1729262418666,0.17205915,68408.0,68407.0,0.00219203]
[1729262420516,0.14905915,68408.0,68407.0,0.00219203]
[1729262424616,0.15071515,68408.0,68407.0,0.00219203]
[1729262429204,0.023,68407.0,68404.0,0.00894387]
[1729262429437,0.14895915,68406.0,68404.0,0.00894387]
[1729262429661,0.023,68405.0,68402.0,0.002]
[1729262429899,0.14895915,68404.0,68402.0,0.002]
[1729262431940,0.00477702,68403.0,68402.0,0.002]
[1729262432161,0.15373617,68403.0,68402.0,0.0436239]
[1729262433021,0.15373617,68403.0,68402.0,0.05298578]
[1729262433242,0.15373617,68403.0,68402.0,0.05517793]
[1729262434620,0.44273617,68403.0,68402.0,0.00219215]
[1729262436156,0.44083617,68403.0,68402.0,0.00219215]
[1729262436661,0.15383617,68403.0,68402.0,0.00219215]
[1729262438249,0.15383617,68403.0,68402.0,0.01133052]
[1729262438470,0.15383617,68403.0,68402.0,0.10977797]
[1729262439129,0.15383617,68403.0,68402.0,0.00219215]
[1729262442101,0.15383617,68403.0,68402.0,0.01146139]
[1729262442343,0.17683617,68403.0,68402.0,0.11007934]
[1729262442554,0.17683617,68403.0,68402.0,0.00219215]
[1729262443049,0.25263617,68403.0,68402.0,0.06698092]
[1729262443273,0.44903617,68403.0,68402.0,0.04537424]
[1729262443518,0.45103617,68403.0,68402.0,0.00219215]
[1729262443753,0.44903617,68403.0,68399.0,0.000828]
[1729262443969,0.17195915,68400.0,68399.0,0.000828]
[1729262444442,0.14895915,68400.0,68399.0,0.04401009]
[1729262444444,0.14895915,68400.0,68399.0,0.000828]
[1729262444633,0.15342794,68400.0,68399.0,0.000828]
[1729262446457,0.15342794,68400.0,68399.0,0.0100824]
[1729262446709,0.00446879,68400.0,68399.0,0.22912925]
[1729262446944,0.00446879,68400.0,68399.0,0.1350847]
[1729262447179,0.001756,68408.0,68400.0,0.1]
[1729262447397,0.21904685,68407.0,68402.0,0.1]
[1729262447633,0.21904685,68407.0,68406.0,0.24560741]
[1729262447906,0.001756,68408.0,68406.0,0.24560741]
[1729262447907,0.001756,68408.0,68407.0,0.1]
[1729262448125,0.21904685,68415.0,68407.0,0.10192]
[1729262448596,0.00415018,68414.0,68407.0,0.1]
[1729262448822,0.00415018,68414.0,68410.0,0.00192]
[1729262449053,0.001656,68425.0,68410.0,0.00192]
[1729262449054,0.001656,68425.0,68417.0,0.00192]
[1729262449291,0.21904685,68419.0,68418.0,0.09193912]
[1729262449526,0.001656,68425.0,68419.0,0.1]
[1729262450196,0.19761685,68427.0,68421.0,0.00096]
[1729262450446,0.19761685,68427.0,68420.0,0.00096]
[1729262450447,0.19761685,68427.0,68424.0,0.1]
[1729262450694,0.001656,68453.0,68426.0,0.1]
[1729262450925,0.001656,68453.0,68436.0,0.19051046]
[1729262451138,0.001656,68453.0,68437.0,2.141253]
[1729262451379,0.001656,68453.0,68442.0,0.1]
[1729262451858,0.001656,68453.0,68442.0,0.1041103]
[1729262452078,0.001656,68453.0,68442.0,0.1021903]
[1729262452517,0.001656,68453.0,68445.0,0.12884734]
[1729262452750,0.001656,68453.0,68445.0,0.1]
[1729262453580,0.001656,68453.0,68445.0,0.22871313]
[1729262453764,0.001656,68453.0,68442.0,0.0021903]
[1729262454224,0.001656,68453.0,68442.0,0.01119755]
[1729262454473,0.21904685,68443.0,68442.0,0.0021903]
[1729262454695,0.001656,68453.0,68442.0,0.0021903]
[1729262454696,0.001656,68453.0,68445.0,0.1]
[1729262454925,0.001656,68453.0,68445.0,0.164299]
[1729262455353,0.001656,68453.0,68445.0,0.14287599]
[1729262455605,0.001656,68453.0,68445.0,0.1]
[1729262455823,0.001656,68453.0,68443.0,0.04287599]
[1729262456739,0.001656,68453.0,68442.0,0.0021903]
[1729262457427,0.001656,68453.0,68442.0,0.04506629]
[1729262457645,0.001656,68453.0,68442.0,0.0021903]
[1729262457646,0.14895915,68445.0,68442.0,0.0021903]
[1729262457864,0.15389605,68445.0,68442.0,0.0021903]
[1729262458084,0.21904685,68444.0,68442.0,0.0021903]
[1729262458304,0.14895915,68443.0,68442.0,0.0021903]
[1729262458525,0.17195915,68443.0,68442.0,0.0021903]
[1729262458746,0.36319381,68443.0,68442.0,0.0021903]
[1729262459200,0.34019381,68443.0,68442.0,0.0021903]
[1729262459439,0.36319381,68443.0,68442.0,0.0021903]
[1729262462568,0.15389381,68443.0,68442.0,0.02179836]
[1729262462789,0.15389381,68443.0,68442.0,0.0021903]
[1729262463504,0.00493466,68443.0,68442.0,0.0021903]
[1729262463720,0.00493466,68443.0,68442.0,0.04506629]
[1729262463931,0.006658,68446.0,68442.0,0.04506629]
[1729262464148,0.21904685,68444.0,68442.0,0.04501702]
[1729262464379,0.15561715,68446.0,68442.0,0.0021903]
[1729262464609,0.005506,68443.0,68442.0,0.0021903]
[1729262464848,0.15561715,68446.0,68442.0,0.0021903]
[1729262465081,0.006658,68446.0,68444.0,0.04281304]
[1729262465314,0.006658,68446.0,68445.0,0.16419018]
[1729262465557,0.006658,68446.0,68445.0,0.1]
[1729262465827,0.006658,68446.0,68445.0,0.16419018]
[1729262466283,0.006658,68446.0,68444.0,0.16419018]
[1729262466730,0.006658,68446.0,68444.0,0.06419018]
[1729262467411,0.006658,68446.0,68445.0,0.04278228]
[1729262467890,0.15561715,68446.0,68444.0,0.04278228]
[1729262468125,0.15561715,68446.0,68442.0,0.06638048]
[1729262468126,0.14895915,68445.0,68442.0,0.0021903]
[1729262468369,0.15446346,68445.0,68444.0,0.00914511]
[1729262468592,0.15446346,68445.0,68442.0,0.0021903]
[1729262468842,0.00550431,68445.0,68444.0,0.0197653]
[1729262469058,0.00550431,68445.0,68444.0,0.08561501]
[1729262469274,0.00550431,68445.0,68444.0,0.08553426]
[1729262469517,0.006658,68446.0,68444.0,0.08553426]
[1729262469760,0.006658,68446.0,68445.0,0.18553426]
[1729262470004,0.006658,68446.0,68445.0,0.1197653]
[1729262470230,0.001656,68451.0,68445.0,1.2168903]
[1729262470451,0.001656,68451.0,68449.0,0.06413373]
[1729262470667,0.001656,68453.0,68449.0,0.08551164]
[1729262470931,0.001656,68453.0,68451.0,0.06604688]
[1729262471161,0.001656,68453.0,68452.0,0.06604688]
[1729262471397,0.001656,68453.0,68452.0,1.0950933]
[1729262471638,0.001656,68456.0,68453.0,0.1193274]
[1729262471874,0.21904685,68461.0,68455.0,0.18546983]